fUST/lending_fUST_20240619
["ID","MTS","AMOUNT","RATE_DAILY","PERIOD"]
[329889938,1718798803041,1283.39101905,9.999e-05,2]
[329889939,1718798825111,-300.0,0.00014971,2]
[329889940,1718798825131,-6.04514749,0.00014971,2]
[329889941,1718798833126,-169.80891931,0.00014971,2]
[329889942,1718798833148,-130.19108069,0.00014971,2]
[329889943,1718798834121,-1152.12747929,0.00014971,2]
[329889944,1718798834141,-1199.97578442,0.00014972,2]
[329889945,1718798847084,524.03705854,9.999e-05,2]
[329889946,1718798847227,-420.12996657,0.0001497,2]
[329889947,1718798950241,-300.0,0.00014969,2]
[329889948,1718798950262,-10555.25734541,0.0001497,2]
[329889949,1718798950283,-175.8540668,0.00014971,2]
[329889950,1718798950303,-1913.20101544,0.00014971,2]
[329889951,1718798950324,-1445.74057353,0.00014972,2]
[329889952,1718798950345,-180.22424861,0.00015,2]
[329889953,1718798955862,154.81422293,0.00015,2]
[329889969,1718799033266,-2384.7985211,0.00015273,2]
[329889970,1718799033276,-260.304566,0.00015273,2]
[329889971,1718799033286,-250.0,0.00015273,2]
[329889972,1718799033295,-259.8659191,0.00016168,2]
[329889973,1718799033308,-129.5621115,0.00016168,2]
[329889974,1718799033320,-182.8090332,0.00016269,2]
[329889975,1718799033330,-300.0,0.00016441,2]
[329889976,1718799033339,-2223.33238172,0.00016442,2]
[329890025,1718799038646,-776.66761828,0.00016442,2]
[329890027,1718799038657,-420.0,0.00018086,2]
[329890028,1718799038667,-163.25901194,0.00019,2]
[329890029,1718799038676,-175.8540668,0.00019039,2]
[329890030,1718799038686,-250.0,0.00019041,2]
[329890032,1718799038695,-159.202099,0.00019096,2]
[329890034,1718799038705,-178.55735314,0.00019499,2]
[329890036,1718799038714,-384.18,0.00019593,3]
[329890038,1718799038724,-155.18577707,0.00019597,2]
[329890040,1718799038734,-155.08840647,0.00019598,2]
[329890041,1718799038743,-5610.30000072,0.00019598,2]
[329890042,1718799038774,-71.38941757,0.00019598,2]
[329890788,1718799046925,-1306.06068608,0.00018085,2]
[329890790,1718799046936,-2745.29502552,0.00019598,2]
[329890792,1718799046945,-1123.13570639,0.00019598,2]
[329890794,1718799046955,-1491.2042926,0.00019598,2]
[329890796,1718799046963,-609.82938547,0.00019598,2]
[329890798,1718799046973,-609.82938547,0.00019598,2]
[329890800,1718799046981,-609.82938547,0.00019598,2]
[329890802,1718799046990,-609.82938547,0.00019598,2]
[329890803,1718799046999,-609.82938547,0.00019598,2]
[329890805,1718799047008,-609.82938547,0.00019598,2]
[329890807,1718799047018,-609.82938547,0.00019598,2]
[329890809,1718799047028,-609.82938547,0.00019598,2]
[329890811,1718799047037,-609.82938547,0.00019598,2]
[329890813,1718799047046,-609.82938547,0.00019598,2]
[329890815,1718799047055,-609.82938547,0.00019598,2]
[329890817,1718799047065,-609.82938547,0.00019598,2]
[329890819,1718799047074,-609.82938547,0.00019598,2]
[329890821,1718799047084,-609.82938547,0.00019598,2]
[329890823,1718799047093,-609.82938547,0.00019598,2]
[329890825,1718799047103,-609.82938547,0.00019598,2]
[329890827,1718799047113,-609.82938547,0.00019598,2]
[329890829,1718799047123,-609.82938547,0.00019598,2]
[329890830,1718799047132,-609.82938547,0.00019598,2]
[329890831,1718799047141,-609.82938547,0.00019598,2]
[329890832,1718799047150,-609.82938547,0.00019598,2]
[329890833,1718799047159,-609.82938547,0.00019598,2]
[329890834,1718799047168,-609.82938547,0.00019598,2]
[329890835,1718799047178,-609.82938547,0.00019598,2]
[329890836,1718799047187,-609.82938547,0.00019598,2]
[329890837,1718799047196,-609.82938547,0.00019598,2]
[329890839,1718799047205,-609.82938547,0.00019598,2]
[329890841,1718799047215,-609.82938547,0.00019598,2]
[329890843,1718799047223,-609.82938547,0.00019598,2]
[329890845,1718799047233,-609.82938547,0.00019598,2]
[329890847,1718799047242,-609.82938547,0.00019598,2]
[329890849,1718799047251,-609.82938547,0.00019598,2]
[329890851,1718799047260,-609.82938547,0.00019598,2]
[329890853,1718799047270,-609.82938547,0.00019598,2]
[329890855,1718799047279,-609.82938547,0.00019598,2]
[329890857,1718799047289,-609.82938547,0.00019598,2]
[329890859,1718799047298,-609.82938547,0.00019598,2]
[329890861,1718799047307,-609.82938547,0.00019598,2]
[329890863,1718799047316,-609.82938547,0.00019598,2]
[329890865,1718799047326,-609.82938547,0.00019598,2]
[329890867,1718799047335,-609.82938547,0.00019598,2]
[329890869,1718799047344,-609.82938547,0.00019598,2]
[329890871,1718799047354,-609.82938547,0.00019598,2]
[329890873,1718799047362,-609.82938547,0.00019598,2]
[329890875,1718799047371,-609.82938547,0.00019598,2]
[329890877,1718799047381,-609.82938547,0.00019598,2]
[329890879,1718799047390,-609.82938547,0.00019598,2]
[329890881,1718799047399,-609.82938547,0.00019598,2]
[329890883,1718799047408,-609.82938547,0.00019598,2]
[329890885,1718799047417,-609.82938547,0.00019598,2]
[329890887,1718799047427,-609.82938547,0.00019598,2]
[329890889,1718799047436,-609.82938547,0.00019598,2]
[329890891,1718799047445,-609.82938547,0.00019598,2]
[329890893,1718799047455,-609.82938547,0.00019598,2]
[329890895,1718799047468,-609.82938547,0.00019598,2]
[329890897,1718799047476,-609.82938547,0.00019598,2]
[329890899,1718799047486,-609.82938547,0.00019598,2]
[329890901,1718799047495,-609.82938547,0.00019598,2]
[329890903,1718799047506,-609.82938547,0.00019598,2]
[329890905,1718799047515,-609.82938547,0.00019598,2]
[329890907,1718799047525,-609.82938547,0.00019598,2]
[329890909,1718799047534,-609.82938547,0.00019598,2]
[329890911,1718799047546,-609.82938547,0.00019598,2]
[329890913,1718799047556,-509.34451293,0.000196,2]
[329890915,1718799047565,-603.431126,0.00019603,2]
[329890917,1718799047574,-603.431126,0.00019603,2]
[329890919,1718799047583,-152.18491,0.00019603,2]
[329890921,1718799047592,-649.141465,0.00019603,2]
[329890923,1718799047600,-191.407229,0.00019603,2]
[329890925,1718799047609,-649.141465,0.00019603,2]
[329890927,1718799047619,-191.407229,0.00019603,2]
[329890929,1718799047628,-216.996502,0.00019603,2]
[329890931,1718799047637,-151.0,0.00019603,2]
[329890933,1718799047646,-151.0,0.00019603,2]
[329890934,1718799047655,-152.133893,0.00019603,2]
[329890936,1718799047665,-474.893051,0.00019603,2]
[329890939,1718799047674,-474.893051,0.00019603,2]
[329890941,1718799047683,-943.748894,0.00019603,2]
[329890942,1718799047692,-943.748894,0.00019603,2]
[329890944,1718799047702,-474.893051,0.00019603,2]
[329890946,1718799047711,-474.893051,0.00019603,2]
[329890948,1718799047721,-943.748894,0.00019603,2]
[329890950,1718799047731,-943.748894,0.00019603,2]
[329890952,1718799047741,-154.168685,0.00019603,2]
[329890954,1718799047750,-151.0,0.00019603,2]
[329890956,1718799047759,-151.0,0.00019603,2]
[329890958,1718799047769,-151.0,0.00019603,2]
[329890961,1718799047778,-151.0,0.00019603,2]
[329890963,1718799047788,-1688.782382,0.00019603,2]
[329890964,1718799047797,-1688.782382,0.00019603,2]
[329890966,1718799047806,-1688.782382,0.00019603,2]
[329890968,1718799047816,-1688.782382,0.00019603,2]
[329890971,1718799047825,-1688.782382,0.00019603,2]
[329890973,1718799047835,-1688.782382,0.00019603,2]
[329890974,1718799047843,-151.0,0.00019603,2]
[329890977,1718799047852,-151.0,0.00019603,2]
[329890978,1718799047862,-151.0,0.00019603,2]
[329890980,1718799047871,-151.0,0.00019603,2]
[329890983,1718799047881,-151.0,0.00019603,2]
[329890984,1718799047890,-151.0,0.00019603,2]
[329890987,1718799047900,-151.0,0.00019603,2]
[329890988,1718799047909,-151.0,0.00019603,2]
[329890991,1718799047919,-151.0,0.00019603,2]
[329890993,1718799047928,-151.0,0.00019603,2]
[329890994,1718799047937,-151.0,0.00019603,2]
[329890996,1718799047947,-170.116328,0.00019603,2]
[329890999,1718799047956,-151.0,0.00019603,2]
[329891000,1718799047965,-151.0,0.00019603,2]
[329891002,1718799047975,-151.0,0.00019603,2]
[329891005,1718799047984,-151.0,0.00019603,2]
[329891006,1718799047994,-1000.0,0.00019603,2]
[329891009,1718799048004,-1000.0,0.00019603,2]
[329891011,1718799048013,-1000.0,0.00019603,2]
[329891013,1718799048023,-1000.0,0.00019603,2]
[329891015,1718799048032,-1000.0,0.00019603,2]
[329891016,1718799048042,-1000.0,0.00019603,2]
[329891018,1718799048051,-1000.0,0.00019603,2]
[329891020,1718799048061,-1000.0,0.00019603,2]
[329891022,1718799048070,-1000.0,0.00019603,2]
[329891025,1718799048080,-1000.0,0.00019603,2]
[329891026,1718799048089,-1000.0,0.00019603,2]
[329891029,1718799048100,-1000.0,0.00019603,2]
[329891030,1718799048110,-151.0,0.00019603,2]
[329891032,1718799048120,-151.0,0.00019603,2]
[329891046,1718799048131,-1000.0,0.00019603,2]
[329891048,1718799048241,-1000.0,0.00019603,2]
[329891050,1718799048250,-1000.0,0.00019603,2]
[329891052,1718799048260,-1000.0,0.00019603,2]
[329891054,1718799048271,-1000.0,0.00019603,2]
[329891056,1718799048280,-1000.0,0.00019603,2]
[329891058,1718799048289,-1000.0,0.00019603,2]
[329891060,1718799048298,-1000.0,0.00019603,2]
[329891062,1718799048308,-1000.0,0.00019603,2]
[329891064,1718799048317,-1000.0,0.00019603,2]
[329891066,1718799048326,-678.548293,0.00019603,2]
[329891068,1718799048336,-14065.5893066,0.00019603,2]
[329891070,1718799048345,-287.0,0.00019894,2]
[329891072,1718799048355,-167.30657264,0.0002,2]
[329891074,1718799048367,-750.0,0.00021096,2]
[329891076,1718799048376,-473.291291,0.00021096,2]
[329891078,1718799048386,-151.0,0.00021096,2]
[329891080,1718799048397,-151.0,0.00021096,2]
[329891082,1718799048406,-151.0,0.00021096,2]
[329891085,1718799048418,-151.0,0.00021096,2]
[329891087,1718799048428,-151.0,0.00021096,2]
[329891089,1718799048437,-166.666666,0.00021918,2]
[329891090,1718799048446,-178.55735313,0.00022197,2]
[329891093,1718799048460,-166.666666,0.00022431,2]
[329891094,1718799048470,-166.666666,0.00022944,2]
[329891097,1718799048479,-615.37066309,0.00023,2]
[329891098,1718799048489,-151.0,0.00023,2]
[329891100,1718799048499,-166.666666,0.00023456,2]
[329891102,1718799048508,-166.666666,0.00023969,2]
[329891104,1718799048518,-166.666666,0.00024482,2]
[329891106,1718799048528,-151.0,0.00024658,2]
[329891108,1718799048540,-151.0,0.00024658,2]
[329891110,1718799048549,-221.713243,0.00024658,2]
[329891112,1718799048558,-200.0,0.00024658,15]
[329891114,1718799048568,-178.55735313,0.00024894,2]
[329891116,1718799048577,-1306.24696487,0.00024971,2]
[329891118,1718799048586,-242.29129447,0.00024992,2]
[329891120,1718799048595,-164.56852688,0.00024992,2]
[329891122,1718799048605,-298.99786568,0.00024992,2]
[329891124,1718799048614,-226.10975469,0.00024992,2]
[329891126,1718799048623,-249.90593335,0.00024992,2]
[329891128,1718799048633,-155.10919426,0.00024992,2]
[329891130,1718799048643,-155.1051018,0.00024992,2]
[329891132,1718799048652,-181.34485636,0.00024992,2]
[329891134,1718799048661,-157.81180002,0.00024992,2]
[329891136,1718799048671,-301.48812746,0.00024992,2]
[329891138,1718799048680,-155.59927653,0.00024992,2]
[329891141,1718799048691,-195.55275025,0.00024992,2]
[329891142,1718799048700,-155.31361599,0.00024992,2]
[329891145,1718799048709,-155.19930024,0.00024992,2]
[329891146,1718799048718,-155.41084012,0.00024992,2]
[329891149,1718799048728,-302.75314105,0.00024992,2]
[329891150,1718799048737,-205.06499734,0.00024992,2]
[329891152,1718799048746,-185.24368885,0.00024992,2]
[329891155,1718799048756,-231.61124789,0.00024992,2]
[329891157,1718799048765,-241.69937906,0.00024992,2]
[329891159,1718799048775,-207.00798922,0.00024992,2]
[329891161,1718799048784,-301.10641659,0.00024992,2]
[329891163,1718799048793,-317.53985049,0.00024992,2]
[329891165,1718799048803,-155.21678017,0.00024992,2]
[329891167,1718799048813,-402.2507925,0.00024992,2]
[329891168,1718799048822,-151.0,0.00024992,2]
[329891170,1718799048832,-151.0,0.00024992,2]
[329891173,1718799048842,-153.292147,0.00024992,2]
[329891174,1718799048852,-151.0,0.00024992,2]
[329891176,1718799048863,-151.0,0.00024992,2]
[329891179,1718799048872,-151.0,0.00024992,2]
[329891180,1718799048881,-152.311017,0.00024992,2]
[329891182,1718799048892,-151.0,0.00024992,30]
[329891184,1718799048901,-152.712482,0.00024992,30]
[329891186,1718799048912,-151.0,0.00024992,2]
[329891189,1718799048922,-180.25686,0.00024992,2]
[329891191,1718799048933,-151.0,0.00024992,2]
[329891193,1718799048943,-151.0,0.00024992,2]
[329891195,1718799048952,-151.0,0.00024992,2]
[329891197,1718799048961,-191.283241,0.00024992,2]
[329891199,1718799048970,-151.0,0.00024992,2]
[329891201,1718799048979,-151.0,0.00024992,2]
[329891203,1718799048988,-153.89218,0.00024992,2]
[329891205,1718799048997,-603.431126,0.00024992,2]
[329891207,1718799049007,-603.431126,0.00024992,2]
[329891209,1718799049016,-603.431126,0.00024992,2]
[329891211,1718799049026,-603.431126,0.00024992,2]
[329891213,1718799049036,-603.431126,0.00024992,2]
[329891215,1718799049045,-603.431126,0.00024992,2]
[329891217,1718799049054,-649.141465,0.00024992,2]
[329891219,1718799049063,-649.141465,0.00024992,2]
[329891221,1718799049073,-191.407229,0.00024992,2]
[329891223,1718799049082,-191.407229,0.00024992,2]
[329891225,1718799049092,-649.141465,0.00024992,2]
[329891227,1718799049101,-649.141465,0.00024992,2]
[329891229,1718799049112,-191.407229,0.00024992,2]
[329891231,1718799049122,-191.407229,0.00024992,2]
[329891233,1718799049131,-151.0,0.00024992,2]
[329891235,1718799049141,-151.0,0.00024992,2]
[329891237,1718799049151,-474.893051,0.00024992,2]
[329891239,1718799049160,-474.893051,0.00024992,2]
[329891241,1718799049169,-943.748894,0.00024992,2]
[329891243,1718799049178,-943.748894,0.00024992,2]
[329891245,1718799049187,-474.893051,0.00024992,2]
[329891247,1718799049197,-474.893051,0.00024992,2]
[329891249,1718799049207,-943.748894,0.00024992,2]
[329891251,1718799049216,-943.748894,0.00024992,2]
[329891253,1718799049226,-151.0,0.00024992,2]
[329891255,1718799049235,-151.0,0.00024992,2]
[329891257,1718799049245,-1688.782382,0.00024992,2]
[329891259,1718799049254,-1688.782382,0.00024992,2]
[329891261,1718799049263,-151.0,0.00024992,2]
[329891263,1718799049273,-151.0,0.00024992,2]
[329891265,1718799049282,-151.0,0.00024992,2]
[329891267,1718799049292,-151.0,0.00024992,2]
[329891269,1718799049302,-152.806506,0.00024992,2]
[329891271,1718799049311,-151.0,0.00024992,2]
[329891273,1718799049320,-1283.98052156,0.00024993,2]
[329891275,1718799049330,-155.75948385,0.00024993,2]
[329891277,1718799049340,-301.70531781,0.00024993,2]
[329891279,1718799049349,-173.56052319,0.00024993,2]
[329891281,1718799049357,-178.06021367,0.00024993,2]
[329891283,1718799049366,-151.0,0.00024993,2]
[329891285,1718799049376,-212.214238,0.00024993,2]
[329891287,1718799049386,-151.0,0.00024993,2]
[329891289,1718799049395,-158.910798,0.00024993,2]
[329891291,1718799049404,-1688.782382,0.00024993,2]
[329891293,1718799049413,-1688.782382,0.00024993,2]
[329891295,1718799049423,-155.454492,0.00024993,2]
[329891297,1718799049432,-151.0,0.00024993,2]
[329891299,1718799049441,-177.957714,0.00024993,2]
[329891301,1718799049452,-151.0,0.00024993,2]
[329891303,1718799049462,-151.0,0.00024993,2]
[329891305,1718799049474,-726.42118017,0.00024994,2]
[329891307,1718799049483,-192.94456193,0.00024994,2]
[329891309,1718799049492,-156.13126707,0.00024994,2]
[329891311,1718799049502,-195.16599108,0.00024994,2]
[329891313,1718799049511,-164.71261991,0.00024994,2]
[329891315,1718799049522,-476.97437791,0.00024994,2]
[329891317,1718799049531,-155.20127862,0.00024994,2]
[329891319,1718799049542,-155.18112938,0.00024994,2]
[329891321,1718799049552,-164.60963917,0.00024994,2]
[329891323,1718799049562,-157.0195297,0.00024994,2]
[329891325,1718799049571,-20000.0,0.00024994,2]
[329891327,1718799049580,-282.3825619,0.00024994,2]
[329891329,1718799049590,-157.84341236,0.00024994,2]
[329891331,1718799049599,-825.23441337,0.00024994,2]
[329891333,1718799049608,-178.298899,0.00024994,2]
[329891335,1718799049617,-151.0,0.00024994,2]
[329891337,1718799049627,-151.0,0.00024994,2]
[329891339,1718799049636,-603.431126,0.00024994,2]
[329891340,1718799049645,-603.431126,0.00024994,2]
[329891342,1718799049654,-649.141465,0.00024994,2]
[329891344,1718799049664,-191.407229,0.00024994,2]
[329891346,1718799049673,-649.141465,0.00024994,2]
[329891349,1718799049683,-191.407229,0.00024994,2]
[329891350,1718799049692,-264.605845,0.00024994,2]
[329891352,1718799049701,-474.893051,0.00024994,2]
[329891354,1718799049710,-943.748894,0.00024994,2]
[329891356,1718799049720,-474.893051,0.00024994,2]
[329891359,1718799049732,-943.748894,0.00024994,2]
[329891361,1718799049741,-151.0,0.00024994,2]
[329891363,1718799049751,-1688.782382,0.00024994,2]
[329891364,1718799049760,-1688.782382,0.00024994,2]
[329891367,1718799049771,-151.0,0.00024994,2]
[329891369,1718799049780,-151.0,0.00024994,2]
[329891370,1718799049790,-151.0,0.00024994,2]
[329891373,1718799049800,-686.61872356,0.00024995,2]
[329891374,1718799049810,-1501.89648863,0.00024995,2]
[329891377,1718799049819,-839.00761591,0.00024995,2]
[329891378,1718799049828,-182.87002008,0.00024996,2]
[329891381,1718799049838,-155.01550155,0.00024996,2]
[329891383,1718799049848,-1692.62660858,0.00024996,2]
[329891384,1718799049857,-1101.24268017,0.00024996,2]
[329891387,1718799049867,-946.2991471,0.00024996,2]
[329891388,1718799049876,-2817.72604332,0.00024996,2]
[329891391,1718799049886,-155.01550155,0.00024996,2]
[329891393,1718799049895,-240.60733559,0.00024996,2]
[329891395,1718799049905,-553.63278761,0.00024996,2]
[329891396,1718799049914,-692.77111436,0.00024996,2]
[329891398,1718799049924,-155.01550465,0.00024996,2]
[329891401,1718799049934,-922.25169989,0.00024996,2]
[329891402,1718799049944,-1343.59150643,0.00024996,2]
[329891404,1718799049953,-494.36036822,0.00024996,2]
[329891406,1718799049963,-1166.67342291,0.00024996,2]
[329891409,1718799049973,-208.4598643,0.00024996,2]
[329891411,1718799049983,-552.64146814,0.00024996,2]
[329891413,1718799049993,-272.52576032,0.00024996,2]
[329891415,1718799050002,-411.64915333,0.00024996,2]
[329891416,1718799050012,-159.10924468,0.00024996,2]
[329891418,1718799050024,-151.0,0.00024996,2]
[329891421,1718799050033,-239.036031,0.00024996,2]
[329891422,1718799050043,-151.0,0.00024996,2]
[329891424,1718799050053,-151.0,0.00024996,2]
[329891426,1718799050063,-603.431126,0.00024996,2]
[329891429,1718799050073,-603.431126,0.00024996,2]
[329891431,1718799050082,-603.431126,0.00024996,2]
[329891432,1718799050091,-603.431126,0.00024996,2]
[329891435,1718799050101,-649.141465,0.00024996,2]
[329891436,1718799050111,-649.141465,0.00024996,2]
[329891438,1718799050120,-191.407229,0.00024996,2]
[329891440,1718799050130,-191.407229,0.00024996,2]
[329891442,1718799050139,-649.141465,0.00024996,2]
[329891444,1718799050149,-649.141465,0.00024996,2]
[329891446,1718799050158,-191.407229,0.00024996,2]
[329891448,1718799050167,-191.407229,0.00024996,2]
[329891450,1718799050177,-474.893051,0.00024996,2]
[329891452,1718799050186,-474.893051,0.00024996,2]
[329891454,1718799050196,-943.748894,0.00024996,2]
[329891456,1718799050205,-474.893051,0.00024996,2]
[329891459,1718799050215,-943.748894,0.00024996,2]
[329891461,1718799050225,-474.893051,0.00024996,2]
[329891463,1718799050234,-943.748894,0.00024996,2]
[329891464,1718799050242,-943.748894,0.00024996,2]
[329891467,1718799050252,-239.480299,0.00024996,2]
[329891469,1718799050262,-1688.782382,0.00024996,2]
[329891471,1718799050272,-1688.782382,0.00024996,2]
[329891473,1718799050282,-1688.782382,0.00024996,2]
[329891475,1718799050291,-1688.782382,0.00024996,2]
[329891477,1718799050301,-151.0,0.00024996,2]
[329891479,1718799050310,-151.0,0.00024996,2]
[329891481,1718799050320,-151.0,0.00024996,2]
[329891483,1718799050330,-151.0,0.00024996,2]
[329891485,1718799050339,-151.0,0.00024996,2]
[329891487,1718799050349,-229.081011,0.00024996,2]
[329891489,1718799050358,-913.55524097,0.00024997,2]
[329891491,1718799050367,-1442.34664303,0.00024997,2]
[329891503,1718799050468,-598.73875636,0.00024998,2]
[329891505,1718799050479,-223.19908593,0.00024998,2]
[329891507,1718799050488,-2436.80882346,0.00024998,2]
[329891509,1718799050499,-155.2351662,0.00024998,2]
[329891511,1718799050510,-155.07945815,0.00024998,2]
[329891513,1718799050520,-201.25275961,0.00024998,2]
[329891515,1718799050531,-35478.57810534,0.00024998,7]
[329891517,1718799050544,-344.65840788,0.00024998,2]
[329891519,1718799050555,-175.12163332,0.00024998,2]
[329891522,1718799050564,-214.69057053,0.00024998,2]
[329891523,1718799050574,-151.0,0.00024998,2]
[329891525,1718799050584,-603.431126,0.00024998,2]
[329891527,1718799050593,-603.431126,0.00024998,2]
[329891529,1718799050602,-649.141465,0.00024998,2]
[329891531,1718799050611,-649.141465,0.00024998,2]
[329891533,1718799050621,-191.407229,0.00024998,2]
[329891535,1718799050630,-191.407229,0.00024998,2]
[329891537,1718799050640,-649.141465,0.00024998,2]
[329891539,1718799050649,-649.141465,0.00024998,2]
[329891541,1718799050659,-191.407229,0.00024998,2]
[329891543,1718799050669,-191.407229,0.00024998,2]
[329891545,1718799050679,-474.893051,0.00024998,2]
[329891547,1718799050688,-474.893051,0.00024998,2]
[329891549,1718799050698,-474.893051,0.00024998,2]
[329891551,1718799050707,-943.748894,0.00024998,2]
[329891553,1718799050717,-474.893051,0.00024998,2]
[329891556,1718799050726,-943.748894,0.00024998,2]
[329891557,1718799050736,-943.748894,0.00024998,2]
[329891559,1718799050746,-943.748894,0.00024998,2]
[329891562,1718799050756,-1688.782382,0.00024998,2]
[329891564,1718799050767,-1688.782382,0.00024998,2]
[329891566,1718799050778,-1688.782382,0.00024998,2]
[329891568,1718799050788,-1688.78237644,0.00024998,2]
[329891570,1718799050797,-151.0,0.00024998,2]
[329891572,1718799050807,-151.0,0.00024998,2]
[329891573,1718799050816,-151.0,0.00024998,2]
[329891575,1718799050825,-151.0,0.00024998,2]
[329891577,1718799050835,-9872.4255367,0.00024999,2]
[329891580,1718799050844,-151.0,0.00024999,2]
[329891581,1718799050853,-603.431126,0.00024999,2]
[329891584,1718799050863,-603.431126,0.00024999,2]
[329891586,1718799050872,-649.141465,0.00024999,2]
[329891588,1718799050882,-191.407229,0.00024999,2]
[329891589,1718799050891,-649.141465,0.00024999,2]
[329891591,1718799050900,-191.407229,0.00024999,2]
[329891593,1718799050910,-474.893051,0.00024999,2]
[329891595,1718799050919,-474.893059,0.00024999,2]
[329891597,1718799050928,-943.748894,0.00024999,2]
[329891599,1718799050937,-943.748903,0.00024999,2]
[329891601,1718799050947,-878.17128837,0.00025,2]
[329891604,1718799050956,-192.42417467,0.00025,2]
[329891606,1718799050966,-178315.95519215,0.00025,120]
[329891608,1718799050983,-7003.0,0.00025,120]
[329892549,1718799238357,3000.0,0.000225,30]
[329892550,1718799253423,3205.59042656,0.000225,30]
[329892551,1718799292579,5000.0,0.00014,2]
[329892552,1718799342170,190.50831126,9.9e-05,2]
[329892553,1718799373489,273.37336231,9.9e-05,2]
[329892554,1718799382801,236.94958346,9.9e-05,2]
[329892556,1718799910888,175.8540668,9.999e-05,2]
[329892557,1718800039162,-154.81422293,0.00015,2]
[329892558,1718800039181,-300.0,0.00015272,2]
[329892559,1718800039201,-300.0,0.00015272,2]
[329892560,1718800039220,-178.32446981,0.00015273,2]
[329892561,1718800042117,-770.23601638,0.00015273,2]
[329892562,1718800112990,373.31066865,9.999e-05,2]
[329892620,1718800238108,-175.8540668,0.00015272,2]
[329892621,1718800238118,-883.0089322,0.00015273,2]
[329892622,1718800238240,-2991.20585304,0.00015273,2]
[329892623,1718800238252,-2595.75104007,0.00015273,2]
[329892624,1718800238262,-1621.7327905,0.00015273,2]
[329892625,1718800238271,-2179.8735565,0.00015273,2]
[329892626,1718800238282,-1306.06068608,0.00018,2]
[329892627,1718800238291,-607.19060049,0.000185,2]
[329892628,1718800238301,-163.25901194,0.00019095,2]
[329892629,1718800238311,-159.202099,0.00019096,2]
[329892630,1718800238320,-164.64057133,0.00019596,2]
[329892631,1718800238330,-205.29891162,0.00019596,2]
[329892929,1718800303302,273.03810069,9.999e-05,2]
[329892930,1718800303330,129.29360592,9.999e-05,2]
[329892931,1718800346207,2645.71635795,9.999e-05,2]
[329892970,1718800618647,9978.50576524,0.000125,2]
[329892972,1718800650041,273.37336231,9.9e-05,2]
[329892973,1718800873507,175.8540668,9.999e-05,2]
[329892974,1718801210200,2097.38249461,9.999e-05,2]
[329892975,1718801211718,16206.17898442,9.999e-05,2]
[329892976,1718801212484,6522.93104331,9.999e-05,2]
[329892977,1718801228148,532.05277852,9.999e-05,2]
[329892978,1718801229732,-175.8540668,0.00015272,2]
[329892979,1718801229753,-163.040796,0.00015273,2]
[329892980,1718801229776,-3296.9694458,0.00015273,2]
[329892981,1718801229802,-300.0,0.00015999,2]
[329892982,1718801229824,-300.0,0.00015999,2]
[329892983,1718801229846,-31.00288623,0.00016,2]
[329892984,1718801231703,13158.43238689,9.999e-05,2]
[329892985,1718801234099,-218.7235122,0.00016,2]
[329892986,1718801237090,-599.46307142,0.00016,2]
[329892991,1718801289733,188.18547446,9.9e-05,2]
[329892992,1718801349698,-286.91036828,0.00015,2]
[329892993,1718801379784,213.08963172,9.9e-05,2]
[329892994,1718801379808,60.28373059,9.9e-05,2]
[329892995,1718801388562,208.30494533,9.9e-05,2]
[329892996,1718801388595,65.06841698,9.9e-05,2]
[329892997,1718801398962,273.37336231,9.9e-05,2]
[329892998,1718801422682,273.37336231,9.9e-05,2]
[329892999,1718801430902,273.37336231,9.9e-05,2]
[329893072,1718801432483,-250.0,0.00015273,2]
[329893074,1718801432494,-1885.16074304,0.00016,2]
[329893076,1718801432503,-175.8540668,0.00017999,2]
[329893078,1718801432514,-1306.06068608,0.00018,2]
[329893080,1718801432523,-607.19060049,0.00018534,2]
[329893082,1718801432532,-300.0,0.00018535,2]
[329893084,1718801432542,-300.0,0.00018535,2]